Workbook

Sheet list01
A1: lc=R27C10
B2: Ўзбекистон Республикаси Молия вазирининг 2002 йил 27 декабрдаги 140-сонли буйруғига 2-сонли илова, ЎзР АВ томонидан 2003 й. 24 январда рўйхатга олинган N 1209
B3: Молиявий натижалар тўгрисида хисобот - 2-сонли шакл
C5: 2023 | D5: йил | E5: 1 | F5: чораги | I5: Коды
B6: БхУТ бўйича 1-шакл
B8: Корхона, ташкилот | C8: АКЦИОНЕРНОЕ ОБЩЕСТВО "O`ZINTERIMPEKS" | H8: КТУТ бўйича | I8: 2157450
B10: Тармоқ | C10: Торговля | H10: ХХТУТ бўйича | I10: 72100
B12: Ташкилий-ҳуқуқий шакли | H12: ТхШТ бўйича | I12: 153
B14: Мулкчилик шакли | C14: Коллективная | H14: МШТ бўйича | I14: 100
B16: Вазирлик, идора ва бошқалар | H16: ДБИБТ бўйича | I16: 03873
B18: Солиқ тўловчининг идентификацион рақами | H18: СТИР | I18: 200523324
B20: Ҳудуд | C20: ТОШКЕНТ ШАҲАР МИРЗО УЛУҒБЕК тумани | H20: МхОБТ | I20: 1730405
B22: Манзил | C22: MUSTAQILLIK SHOX KO'CHASI., 59-UY | H22: Жўнатилган сана | I22: 2023-04-25
B24: Ўлчов бирлиги, минг сўм | H24: қабул қилинган сана
G26: Такдим қилиш муддати | I26: 2023-04-25

Sheet list02
A1: lc=R33C8
B2: МОЛИЯВИЙ НАТИЖАЛАР ТУГРИСИДА ХИСОБОТ - 2-сонли шакл | E2: Ўлчов бирлиги, минг сўм
B3: Кўрсаткичлар номи | C3: Сатр коди | D3: Ўтган йилнинг шу даврида | F3: Ҳисобот даврида
D4: Даромадлар (фойда) | E4: Харажатлар (зарарлар) | F4: Даромадлар (фойда) | G4: Харажатлар (зарарлар)
B5: 1 | C5: 2 | D5: 3 | E5: 4 | F5: 5 | G5: 6
B6: Маҳсулот (товар, иш ва хизмат) ларни сотишдан соф тушум | C6: 010 | E6: x | G6: x
B7: Сотилган маҳсулот (товар, иш ва хизмат) ларнинг таннархи | C7: 020 | D7: x | F7: x
B8: Маҳсулот (товар, иш ва хизмат) ларни сотишнинг ялпи фойдаси (зарари) (сатр.010-020) | C8: 030 | D8: =+D6-E7 -> 0.00 | E8: 0.00 | F8: =+F6-G7 -> 0.00 | G8: 0.00
B9: Давр харажатлари, жами (сатр.050+060+070+080),шу жумладан: | C9: 040 | D9: x | E9: =+E10+E11+E12+E13 -> 177,710.50 | F9: x | G9: =+G10+G11+G12+G13 -> 900,576.14
B10: Сотиш харажатлари | C10: 050 | D10: x | F10: x
B11: Маъмурий харажатлар | C11: 060 | D11: x | E11: 135,056.90 | F11: x | G11: =211042.7+15138.56+31887.29+184250+415000 -> 857,318.55
B12: Бошқа операцион харажатлар | C12: 070 | D12: x | E12: 42,653.60 | F12: x | G12: =1989.89+30000+11267.7 -> 43,257.59
B13: Ҳисобот даврининг солиқ солинадиган фойдадан келгусида чегириладиган харажатлари | C13: 080 | D13: x | F13: x
B14: Асосий фаолиятнинг бошқа даромадлари | C14: 090 | D14: 387,900.50 | E14: x | F14: 905,000.00 | G14: x
B15: Асосий фаолиятнинг фойдаси (зарари) (сатр. 030-040+090) | C15: 100 | D15: =+D8-E9+D14 -> 210,190.00 | E15: 0.00 | F15: =+F8-G9+F14 -> 4,423.86 | G15: 0.00
B16: Молиявий фаолиятнинг даромадлари, жами (сатр.120+130+140+150+160), шу жумладан: | C16: 110 | D16: =+D17+D18+D19+D20+D21 -> 0.00 | E16: x | F16: =+F17+F18+F19+F20+F21 -> 0.00 | G16: x
B17: Дивидендлар шаклидаги даромадлар | C17: 120 | E17: x | G17: x
B18: Фоизлар шаклидаги даромадлар | C18: 130 | E18: x | G18: x
B19: Молиявий ижарадан даромадлар | C19: 140 | E19: x | G19: x
B20: Валюта курси фарқидан даромадлар | C20: 150 | E20: x | G20: x
B21: Молиявий фаолиятнинг бошқа даромадлари | C21: 160 | E21: x | G21: x
B22: Молиявий фаолият бўйича харажатлар (сатр.180+190+200+210), шу жумладан: | C22: 170 | D22: x | E22: =+E23+E24+E25+E26 -> 234,850.00 | F22: x | G22: =+G23+G24+G25+G26 -> 0.00
B23: Фоизлар шаклидаги харажатлар | C23: 180
B24: Молиявий ижара бўйича фоизлар шаклидаги харажатлар | C24: 190 | D24: x | F24: x
B25: Валюта курси фарқидан зарарлар | C25: 200 | D25: x | F25: x
B26: Молиявий фаолият бўйича бошқа харажатлар | C26: 210 | D26: x | E26: 234,850.00 | F26: x
B27: Умумхўжалик фаолиятининг фойдаси (зарари) (сатр.100+110-170) | C27: 220 | D27: 0.00 | E27: =+E22-D15 -> 24,660.00 | F27: =+F15+F16-G22 -> 4,423.86 | G27: 0.00
B28: Фавқулоддаги фойда ва зарарлар | C28: 230
B29: Фойда солиғини тўлагунга қадар фойда (зарар) (сатр.220+/-230) | C29: 240 | D29: =+D27 -> 0.00 | E29: =+E27 -> 24,660.00 | F29: =+F27 -> 4,423.86 | G29: =+G27 -> 0.00
B30: Фойда солиғи | C30: 250 | D30: x | F30: x | G30: 663.58
B31: Фойдадан бошқа солиқлар ва бошқа мажбурий тўловлар | C31: 260 | D31: x | F31: x
B32: Ҳисобот даврининг соф фойдаси (зарари) (сатр.240-250-260) | C32: 270 | D32: 0.00 | E32: =+E29 -> 24,660.00 | F32: =+F29-G30-G31 -> 3,760.28 | G32: 0.00

Sheet list03
A1: lc=R27C6
B2: БЮДЖЕТГА ТЎЛОВЛАР ТЎҒРИСИДА МАЪЛУМОТ
C3: Ўлчов бирлиги, минг сўм
B4: Кўрсаткичлар номи | C4: Сатр коди | D4: Ҳисобот даври учун ҳисоб-китоб бўйича тўланади | E4: Ҳисобот даври учун ҳисоб-китоб бўйича ҳисоблангандан ҳақиқатда тўлангани
B5: Юридик шахслардан олинадиган фойда солиғи | C5: 280 | D5: 663.58 | E5: 663.58
B6: Жисмоний шахслардан олинадиган даромад солиғи | C6: 290 | D6: 22,611.72 | E6: 22,611.72
B7: шу жумладан:шахсий жамғариб бориладиган пенсия ҳисобварақларига ажратмалар | C7: 291 | D7: 188.43 | E7: 188.43
B8: Ободонлаштириш ва ижтимоий инфратузилмани ривожлантириш солиғи | C8: 300
B9: Қўшилган қиймат солиғи | C9: 310
B10: Акциз солиғи | C10: 320
B11: Ер ости бойликларидан фойдаланганлик учун солиқ | C11: 330
B12: Сув ресурсларидан фойдаланганлик учун солиқ | C12: 340
B13: Юридик шахсларнинг мол-мулкига солинадиган солиқ | C13: 350 | D13: 15,138.56 | E13: 15,138.56
B14: Юридик шахслардан олинадиган ер солиғи | C14: 360 | D14: 31,887.29 | E14: 31,887.29
B15: Ягона солиқ тўлови | C15: 370 | D15: 22,611.72 | E15: 22,611.72
B16: Ягона ер солиғи | C16: 380
B17: Қатъий белгиланган солиқ | C17: 390
B18: Бошқа солиқлар | C18: 400
B19: Республика йўл жамғармасига мажбурий ажратмалар | C19: 410
B20: Бюджетдан ташқари Пенсия жамғармасига мажбурий ажратмалар | C20: 420
B21: Бюджетдан ташқари Умумтаълим мактаблари, касб-ҳунар коллежлари, академик лицейлар ва тиббиёт муассасаларини реконструкция қилиш, мукаммал таъмирлаш ва жиҳозлаш жамғармасига мажбурий ажратмалар | C21: 430
B22: Ягона ижтимоий тўлов ва фуқароларнинг бюджетдан ташқари Пенсия жамғармасига суғурта бадаллари | C22: 440
B23: Импорт бўйича божхона божи | C23: 450
B24: Маҳаллий бюджетга йиғимлар | C24: 460
B25: Бюджетга тўловларнинг кечиктирилганлиги учун молиявий жазолар | C25: 470
B26: Жами бюджетга тўловлар суммаси (280 дан 470 сатргача 291 сатрдан ташқари) | C26: 480 | D26: =+D5+D6+D8+D9+D10+D11+D12+D13+D14+D15+D16+D17+D18+D19+D20+D21+D22+D23+D24+D25 -> 92,912.87 | E26: =+E5+E6+E8+E9+E10+E11+E12+E13+E14+E15+E16+E17+E18+E19+E20+E21+E22+E23+E24+E25 -> 92,912.87
